fUST/lending_fUST_20240731
["ID","MTS","AMOUNT","RATE_DAILY","PERIOD"]
[333693482,1722360641457,-556.58482081,0.00013698,2]
[333693483,1722360641466,-500.0,0.00013698,2]
[333693484,1722360641475,-500.0,0.00013698,2]
[333693485,1722360641484,-500.0,0.00013698,2]
[333693486,1722360641494,-500.0,0.00013698,2]
[333693487,1722360641503,-500.0,0.00013698,2]
[333693488,1722360641513,-500.0,0.00013698,2]
[333693489,1722360641523,-518.15501079,0.00013698,2]
[333693490,1722360641532,-500.0,0.00013698,2]
[333693491,1722360641541,-500.0,0.00013698,2]
[333693492,1722360641551,-500.0,0.00013698,2]
[333693493,1722360641561,-355.0,0.00013699,2]
[333693494,1722360641571,-404.28534,0.00013699,2]
[333693495,1722360641582,-3000.0,0.00013699,2]
[333693496,1722360641593,-462.296399,0.00013699,2]
[333693497,1722360641606,-150.112233,0.000137,2]
[333693498,1722360641617,-150.112233,0.000139,2]
[333693499,1722360641626,-583.33,0.00013972,2]
[333693500,1722360641636,-1220.72,0.00013972,2]
[333693501,1722360641645,-500.0,0.00013972,2]
[333693502,1722360641655,-500.0,0.00013972,2]
[333693503,1722360641664,-500.0,0.00013972,2]
[333693504,1722360641674,-500.0,0.00013972,2]
[333693505,1722360641683,-500.0,0.00013972,2]
[333693506,1722360641693,-2413.61,0.00013972,2]
[333693507,1722360641702,-462.296399,0.00013972,2]
[333693508,1722360641712,-462.296399,0.00013972,2]
[333693509,1722360641722,-1638.52,0.00013972,2]
[333693510,1722360641732,-280.66,0.00013972,2]
[333693511,1722360641741,-504.85242468,0.00013972,2]
[333693512,1722360641751,-339.52,0.00013972,2]
[333693513,1722360641760,-500.0,0.00013972,2]
[333693514,1722360641770,-911.05,0.00013972,2]
[333693515,1722360641780,-500.0,0.00013972,2]
[333693516,1722360641790,-500.0,0.00013972,2]
[333693517,1722360641799,-500.0,0.00013972,2]
[333693518,1722360641809,-500.0,0.00013972,2]
[333693519,1722360641818,-500.0,0.00013972,2]
[333693520,1722360641828,-500.0,0.00013972,2]
[333693521,1722360641837,-500.0,0.00013972,2]
[333693522,1722360641847,-500.0,0.00013972,2]
[333693523,1722360641856,-500.0,0.00013972,2]
[333693524,1722360641868,-599.59,0.00013972,2]
[333693525,1722360641878,-500.0,0.00013972,2]
[333693526,1722360641888,-3847.05393605,0.0001399,2]
[333693527,1722360641899,-27850.0,0.00014,2]
[333693528,1722360641912,-150.112233,0.00014,2]
[333693529,1722360641923,-620.00000001,0.00014064,2]
[333693530,1722360641934,-367.69126021,0.00014079,2]
[333693531,1722360641948,-3654.33830222,0.00014084,2]
[333693532,1722360641960,-3200.0,0.00014095,2]
[333693533,1722360641970,-276.555,0.00014095,2]
[333693534,1722360641983,-150.112233,0.000141,2]
[333693535,1722360641995,-150.112233,0.000141,2]
[333693536,1722360642005,-150.112233,0.000141,2]
[333693537,1722360642017,-150.112233,0.000142,2]
[333693538,1722360642027,-150.112233,0.000142,2]
[333693539,1722360642038,-603.0,0.000142,2]
[333693540,1722360642048,-462.296399,0.00014226,2]
[333693541,1722360642058,-500.0,0.00014235,2]
[333693542,1722360642068,-462.296399,0.00014236,2]
[333693543,1722360642078,-462.296399,0.00014236,2]
[333693544,1722360642087,-462.296399,0.00014236,2]
[333693545,1722360642097,-462.296399,0.00014236,2]
[333693546,1722360642107,-3847.05393605,0.00014236,2]
[333693547,1722360642118,-392.66019088,0.00014246,2]
[333693548,1722360642128,-2000.0,0.00014246,2]
[333693549,1722360642138,-151.0,0.00014246,2]
[333693550,1722360642147,-151.0,0.00014246,2]
[333693551,1722360642157,-151.0,0.00014246,2]
[333693552,1722360642167,-151.0,0.00014246,2]
[333693553,1722360642177,-151.0,0.00014246,2]
[333693554,1722360642186,-151.0,0.00014246,2]
[333693555,1722360642196,-151.0,0.00014246,2]
[333693556,1722360642205,-151.0,0.00014246,2]
[333693557,1722360642215,-151.0,0.00014246,2]
[333693558,1722360642225,-266.09218,0.00014246,2]
[333693559,1722360642234,-1220.72,0.00014246,2]
[333693560,1722360642244,-500.0,0.00014246,2]
[333693561,1722360642254,-2413.61,0.00014246,2]
[333693562,1722360642265,-462.296399,0.00014246,2]
[333693563,1722360642275,-462.296399,0.00014246,2]
[333693564,1722360642287,-462.296399,0.00014246,2]
[333693565,1722360642299,-462.296399,0.00014246,2]
[333693566,1722360642310,-462.296399,0.00014246,2]
[333693567,1722360642322,-462.2964,0.00014246,2]
[333693568,1722360642332,-1638.52,0.00014246,2]
[333693569,1722360642344,-208.41106356,0.00014246,2]
[333693570,1722360642355,-500.0,0.00014246,2]
[333693571,1722360642367,-911.05,0.00014246,2]
[333693572,1722360642378,-500.0,0.00014246,2]
[333693573,1722360642389,-750.0,0.00014247,2]
[333693574,1722360642399,-150.112233,0.000143,2]
[333693575,1722360642409,-150.112233,0.000143,2]
[333693576,1722360642420,-150.112233,0.000143,2]
[333693577,1722360642430,-150.112233,0.000143,2]
[333693578,1722360642441,-150.112233,0.000144,2]
[333693579,1722360642451,-1204.2039435,0.000144,2]
[333693580,1722360642461,-150.112233,0.000144,2]
[333693581,1722360642472,-150.112233,0.000144,2]
[333693582,1722360642483,-874.43832681,0.000144,2]
[333693583,1722360642493,-170.20512748,0.000144,2]
[333693584,1722360642503,-191.0,0.00014486,2]
[333693585,1722360642513,-3847.05393605,0.00014489,2]
[333693586,1722360642525,-151.0,0.0001449,2]
[333693587,1722360642535,-151.0,0.0001449,2]
[333693588,1722360642547,-151.0,0.0001449,2]
[333693589,1722360642558,-151.0,0.0001449,2]
[333693590,1722360642570,-184.429354,0.0001449,2]
[333693591,1722360642581,-30776.4314884,0.0001449,2]
[333693592,1722360642591,-500.0,0.00014498,2]
[333693593,1722360642602,-500.0,0.00014498,2]
[333693594,1722360642616,-1919.04,0.00014499,2]
[333693595,1722360642627,-1919.04,0.00014499,2]
[333693596,1722360642638,-1919.04,0.00014499,2]
[333693597,1722360642648,-1919.04,0.00014499,2]
[333693598,1722360642658,-1919.04,0.00014499,2]
[333693599,1722360642668,-1919.04,0.00014499,2]
[333693600,1722360642678,-1919.04,0.00014499,2]
[333693601,1722360642690,-1919.04,0.00014499,2]
[333693602,1722360642700,-1919.04,0.00014499,2]
[333693603,1722360642710,-1919.04,0.00014499,2]
[333693604,1722360642720,-500.0,0.00014499,2]
[333693605,1722360642730,-500.0,0.00014499,2]
[333693606,1722360642739,-500.0,0.00014499,2]
[333693607,1722360642750,-500.0,0.00014499,2]
[333693608,1722360642762,-500.0,0.00014499,2]
[333693609,1722360642772,-500.0,0.00014499,2]
[333693610,1722360642782,-500.0,0.00014499,2]
[333693611,1722360642793,-500.0,0.00014499,2]
[333693612,1722360642803,-176.16,0.00014499,2]
[333693613,1722360642812,-500.0,0.00014499,2]
[333693614,1722360642823,-500.0,0.00014499,2]
[333693615,1722360642833,-500.0,0.00014499,2]
[333693616,1722360642843,-500.0,0.00014499,2]
[333693617,1722360642854,-500.0,0.00014499,2]
[333693618,1722360642865,-500.0,0.00014499,2]
[333693619,1722360642874,-500.0,0.00014499,2]
[333693620,1722360642884,-500.0,0.00014499,2]
[333693621,1722360642893,-500.0,0.00014499,2]
[333693622,1722360642903,-165.39,0.00014499,2]
[333693623,1722360642912,-151.0,0.00014499,2]
[333693624,1722360642922,-404.016373,0.00014499,2]
[333693625,1722360642931,-404.016373,0.00014499,2]
[333693626,1722360642944,-151.0,0.00014499,2]
[333693627,1722360642954,-151.0,0.00014499,2]
[333693628,1722360642963,-151.0,0.00014499,2]
[333693629,1722360642973,-151.0,0.00014499,2]
[333693630,1722360642983,-339.573647,0.00014499,2]
[333693631,1722360642992,-339.573647,0.00014499,2]
[333693632,1722360643002,-1030.969324,0.00014499,2]
[333693633,1722360643011,-578.812049,0.00014499,2]
[333693635,1722360643022,-578.812049,0.00014499,2]
[333693636,1722360643032,-151.0,0.00014499,2]
[333693637,1722360643041,-151.0,0.00014499,2]
[333693638,1722360643050,-151.0,0.00014499,2]
[333693639,1722360643060,-10507.28359088,0.000145,5]
[333693640,1722360643070,-175.11,0.000145,2]
[333693641,1722360643079,-124998.57719326,0.000145,7]
[333693643,1722360643097,-412.1314938,0.000145,7]
[333693644,1722360643111,-6409.96205683,0.000145,7]
[333693645,1722360643122,-25265.42600885,0.000145,7]
[333693661,1722360663251,322.48391784,9.999e-05,2]
[333693667,1722360721743,300.78721,0.0001212,2]
[333693765,1722361544115,-165.312189,0.00012986,2]
[333693766,1722361544137,-166.666666,0.00012987,2]
[333693767,1722361544164,-668.44622431,0.00013698,2]
[333693776,1722361641128,-162.90125,0.00012986,2]
[333693869,1722361832351,234.47,0.00010959,2]
[333693962,1722361842912,195.39,0.00010959,2]
[333694003,1722361846128,-2.410939,0.00012986,2]
[333694004,1722361846138,-298.376271,0.00013237,2]
[333694006,1722361853473,162.82,0.00010959,2]
[333694007,1722361864075,814.15,0.00010959,2]
[333694102,1722362588448,354.87671746,0.0001,2]
[333694115,1722362863169,-1037.917139,0.00027397,120]
[333694116,1722362863196,-500.0,0.00028,120]
[333694117,1722362863224,-151.0,0.0003,120]
[333694118,1722362863250,-151.0,0.0003,120]
[333694119,1722362863275,-500.0,0.0003,120]
[333694120,1722362863301,-10000.0,0.0003,120]
[333694121,1722362863325,-1273.67997137,0.0003,120]
[333694122,1722362863352,-151.0,0.0003,120]
[333694123,1722362863377,-151.0,0.0003,120]
[333694124,1722362863403,-151.0,0.0003,120]
[333694125,1722362863429,-176.686056,0.0003,120]
[333694126,1722362863461,-1037.917139,0.00031963,120]
[333694127,1722362863487,-500.0,0.00032,120]
[333694128,1722362863515,-151.0,0.00032493,120]
[333694129,1722362863540,-68453.82353855,0.000325,60]
[333694130,1722362863567,-200.0,0.00032704,120]
[333694131,1722362863598,-1273.55577004,0.00033,120]
[333694132,1722362863625,-321749.42090581,0.00033987,120]
[333694133,1722362863650,-500.0,0.00034,120]
[333694134,1722362863675,-1000.0,0.00034,120]
[333694135,1722362863703,-151.0,0.00034603,120]
[333694136,1722362863729,-151.0,0.00034986,120]
[333694137,1722362863754,-164.66389697,0.00035,120]
[333694138,1722362863780,-30000.0,0.00035,60]
[333694139,1722362863805,-1000.0,0.00035,120]
[333694140,1722362863830,-1000.0,0.00035,120]
[333694141,1722362863856,-1000.0,0.00035,120]
[333694142,1722362863881,-1006.0,0.00035,120]
[333694143,1722362863905,-13330.0,0.00035,120]
[333694144,1722362863930,-2541.62906585,0.00035,120]
[333694145,1722362863955,-500.0,0.00036,120]
[333694146,1722362863979,-10000.0,0.00036,60]
[333694147,1722362864004,-111895.64476316,0.0003609,120]
[333694148,1722362864028,-221.3181939,0.0003609,120]
[333694149,1722362864053,-1037.917139,0.0003653,120]
[333694150,1722362864078,-151.0,0.00037479,120]
[333694151,1722362864105,-20000.0,0.00037831,120]
[333694152,1722362864130,-396740.82642135,0.00038,120]
[333694154,1722362883930,-103259.17357865,0.00038,120]
[333694155,1722362883956,-500.0,0.00038,120]
[333694156,1722362883981,-20000.0,0.00038,60]
[333694157,1722362884006,-2541.62906585,0.00038,120]
[333694186,1722363031904,-300.0,0.00010877,2]
[333694187,1722363031914,-300.0,0.00010877,2]
[333694188,1722363031924,-4869.78319024,0.00010878,2]
[333694190,1722363032022,-1127.26429055,0.00010878,2]
[333694279,1722363040279,-4529.85840651,0.00010878,2]
[333694280,1722363040293,-14373.0941127,0.00010878,2]
[333694281,1722363040303,-166.666666,0.00010992,2]
[333694282,1722363040313,-166.666666,0.00011292,2]
[333694283,1722363040322,-166.666666,0.00011592,2]
[333694284,1722363040331,-159.931256,0.00011631,2]
[333694285,1722363040341,-159.931256,0.00011698,2]
[333694286,1722363040350,-159.931256,0.00011766,2]
[333694287,1722363040360,-391.6604005,0.00011826,2]
[333694288,1722363040370,-159.931256,0.00011833,2]
[333694289,1722363040380,-166.666666,0.00011891,2]
[333694290,1722363040391,-159.931256,0.000119,2]
[333694291,1722363040403,-191.0,0.00011954,2]
[333694292,1722363040413,-420.0,0.00011965,2]
[333694293,1722363040424,-159.931256,0.00011968,2]
[333694294,1722363040436,-159.931256,0.00012035,2]
[333694295,1722363040446,-159.931256,0.00012102,2]
[333694296,1722363040455,-159.931256,0.0001217,2]
[333694297,1722363040466,-166.666666,0.00012191,2]
[333694298,1722363040477,-159.931256,0.00012237,2]
[333694299,1722363040491,-166.666666,0.00012491,2]
[333694300,1722363040501,-165.329879,0.00012986,2]
[333694301,1722363040512,-587.0,0.00013161,2]
[333694302,1722363040522,-367.69126021,0.00013447,2]
[333694303,1722363040534,-294.1142903,0.00013478,2]
[333694304,1722363040546,-294.1142903,0.00013478,2]
[333694305,1722363040557,-294.1142903,0.00013478,2]
[333694306,1722363040568,-152.61196378,0.00013494,2]
[333694307,1722363040578,-392.2336341,0.00013578,2]
[333694308,1722363040588,-294.1142903,0.00013578,2]
[333694309,1722363040599,-276.15659471,0.00013598,2]
[333694310,1722363040610,-4206.29181393,0.00013607,2]
[333694311,1722363040622,-18574.1745897,0.00013688,2]
[333694312,1722363040631,-18574.1745897,0.00013689,2]
[333694313,1722363040642,-500.0,0.00013697,2]
[333694314,1722363040652,-348.82377569,0.00013698,2]
[333694315,1722363040662,-500.0,0.00013698,2]
[333694316,1722363040675,-2111.91,0.00013698,2]
[333694317,1722363040686,-500.0,0.00013698,2]
[333694318,1722363040698,-1433.71,0.00013698,2]
[333694319,1722363040709,-224.42964796,0.00013698,2]
[333694320,1722363040720,-181.81311404,0.00013698,2]
[333694321,1722363040730,-522.82101802,0.00013698,2]
[333694322,1722363040740,-500.0,0.00013698,2]
[333694323,1722363040750,-500.0,0.00013698,2]
[333694324,1722363040764,-500.0,0.00013698,2]
[333694325,1722363040775,-500.0,0.00013698,2]
[333694326,1722363040787,-500.0,0.00013698,2]
[333694327,1722363040798,-500.0,0.00013698,2]
[333694328,1722363040808,-38.50306896,0.00013698,2]
[333694329,1722363040824,-461.49693104,0.00013698,2]
[333694330,1722363040837,-500.0,0.00013698,2]
[333694331,1722363040848,-4.50306896,0.00013698,2]
[333694360,1722363043005,-495.49693104,0.00013698,2]
[333694361,1722363043015,-74.46797766,0.00013698,2]
[333694362,1722363043027,-425.53202234,0.00013698,2]
[333694363,1722363043038,-500.0,0.00013698,2]
[333694364,1722363043047,-158.60778639,0.00013698,2]
[333694365,1722363043057,-83.1483496,0.00013698,2]
[333694366,1722363043070,-416.8516504,0.00013698,2]
[333694367,1722363043079,-500.0,0.00013698,2]
[333694368,1722363043088,-500.0,0.00013698,2]
[333694369,1722363043098,-500.0,0.00013698,2]
[333694370,1722363043109,-500.0,0.00013698,2]
[333694371,1722363043119,-188.66237129,0.00013698,2]
[333694372,1722363043128,-51.02907896,0.00013698,2]
[333694433,1722363046121,-402.47560987,0.00013698,2]
[333694435,1722363046131,-500.0,0.00013698,2]
[333694437,1722363046142,-500.0,0.00013698,2]
[333694439,1722363046151,-500.0,0.00013698,2]
[333694441,1722363046162,-146.61079211,0.00013698,2]
[333694443,1722363046176,-353.38920789,0.00013698,2]
[333694445,1722363046187,-500.0,0.00013698,2]
[333694447,1722363046197,-75.87128095,0.00013698,2]
[333694450,1722363046209,-424.12871905,0.00013698,2]
[333694452,1722363046219,-500.0,0.00013698,2]
[333694454,1722363046228,-500.0,0.00013698,2]
[333694456,1722363046241,-559.20784166,0.00013698,2]
[333694458,1722363046250,-284.91810714,0.00013698,2]
[333694460,1722363046261,-620.0,0.00013698,2]
[333694462,1722363046271,-391.7453322,0.00013698,2]
[333694465,1722363046287,-108.2546678,0.00013698,2]
[333694467,1722363046297,-500.0,0.00013698,2]
[333694469,1722363046306,-500.0,0.00013698,2]
[333694471,1722363046316,-500.0,0.00013698,2]
[333694473,1722363046326,-500.0,0.00013698,2]
[333694475,1722363046335,-500.0,0.00013698,2]
[333694477,1722363046345,-404.13635828,0.00013698,2]
[333694479,1722363046355,-500.0,0.00013698,2]
[333694481,1722363046364,-500.0,0.00013698,2]
[333694483,1722363046373,-500.0,0.00013698,2]
[333694485,1722363046383,-500.0,0.00013698,2]
[333694487,1722363046392,-500.0,0.00013698,2]
[333694489,1722363046402,-500.0,0.00013698,2]
[333694491,1722363046411,-500.0,0.00013698,2]
[333694493,1722363046420,-483.25706206,0.00013698,2]
[333694495,1722363046430,-500.0,0.00013698,2]
[333694497,1722363046440,-500.0,0.00013698,2]
[333694499,1722363046449,-500.0,0.00013698,2]
[333694501,1722363046458,-500.0,0.00013698,2]
[333694503,1722363046467,-500.0,0.00013698,2]
[333694505,1722363046476,-500.0,0.00013698,2]
[333694507,1722363046490,-523.22272385,0.00013698,2]
[333694509,1722363046499,-500.0,0.00013698,2]
[333694511,1722363046509,-500.0,0.00013698,2]
[333694513,1722363046518,-500.0,0.00013698,2]
[333694515,1722363046528,-500.0,0.00013698,2]
[333694517,1722363046538,-504.26309056,0.00013698,2]
[333694519,1722363046547,-500.0,0.00013698,2]
[333694521,1722363046558,-500.0,0.00013698,2]
[333694523,1722363046567,-500.0,0.00013698,2]
[333694525,1722363046576,-271.86281851,0.00013698,2]
[333694527,1722363046587,-280.66,0.00013698,2]
[333694529,1722363046596,-500.0,0.00013698,2]
[333694531,1722363046606,-500.0,0.00013698,2]
[333694533,1722363046616,-500.0,0.00013698,2]
[333694535,1722363046626,-500.0,0.00013698,2]
[333694537,1722363046636,-500.0,0.00013698,2]
[333694540,1722363046647,-500.0,0.00013698,2]
[333694542,1722363046657,-500.0,0.00013698,2]
[333694544,1722363046668,-500.0,0.00013698,2]
[333694546,1722363046678,-500.0,0.00013698,2]
[333694548,1722363046690,-500.0,0.00013698,2]
[333694550,1722363046701,-500.0,0.00013698,2]
[333694552,1722363046711,-500.0,0.00013698,2]
[333694554,1722363046721,-500.0,0.00013698,2]
[333694556,1722363046730,-423.09693936,0.00013698,2]
[333694558,1722363046741,-500.0,0.00013698,2]
[333694560,1722363046755,-500.0,0.00013698,2]
[333694562,1722363046770,-500.0,0.00013698,2]
[333694565,1722363046783,-500.0,0.00013698,2]
[333694567,1722363046798,-506.40701166,0.00013698,2]
[333694569,1722363046807,-500.0,0.00013698,2]
[333694571,1722363046817,-392.85498164,0.00013698,2]
[333694573,1722363046827,-399.42227963,0.00013698,2]
[333694575,1722363046838,-500.0,0.00013698,2]
[333694577,1722363046849,-500.0,0.00013698,2]
[333694579,1722363046858,-500.0,0.00013698,2]
[333694581,1722363046867,-500.0,0.00013698,2]
[333694583,1722363046876,-500.0,0.00013698,2]
[333694585,1722363046886,-500.0,0.00013698,2]
[333694587,1722363046895,-500.0,0.00013698,2]
[333694589,1722363046904,-500.0,0.00013698,2]
[333694591,1722363046914,-500.0,0.00013698,2]
[333694593,1722363046923,-528.8,0.00013698,2]
[333694595,1722363046933,-624.41,0.00013698,2]
[333694597,1722363046942,-500.0,0.00013698,2]
[333694599,1722363046951,-353.9037258,0.00013698,2]
[333694601,1722363046961,-500.0,0.00013698,2]
[333694603,1722363046970,-500.0,0.00013698,2]
[333694605,1722363046979,-500.0,0.00013698,2]
[333694607,1722363046992,-500.0,0.00013698,2]
[333694609,1722363047002,-184.80927451,0.00013698,2]
[333694611,1722363047011,-241.26826775,0.00013698,2]
[333694613,1722363047021,-500.0,0.00013698,2]
[333694615,1722363047030,-500.0,0.00013698,2]
[333694617,1722363047040,-510.89486563,0.00013698,2]
[333694619,1722363047049,-500.0,0.00013698,2]
[333694621,1722363047059,-500.0,0.00013698,2]
[333694623,1722363047068,-500.0,0.00013698,2]
[333694624,1722363047077,-528.65684991,0.00013698,2]
[333694626,1722363047086,-504.85242468,0.00013698,2]
[333694628,1722363047096,-500.0,0.00013698,2]
[333694630,1722363047106,-500.0,0.00013698,2]
[333694632,1722363047116,-500.0,0.00013698,2]
[333694634,1722363047126,-500.0,0.00013698,2]
[333694636,1722363047135,-500.0,0.00013698,2]
[333694638,1722363047145,-599.59,0.00013698,2]
[333694640,1722363047155,-500.0,0.00013698,2]
[333694642,1722363047164,-500.0,0.00013698,2]
[333694644,1722363047174,-500.0,0.00013698,2]
[333694646,1722363047183,-500.0,0.00013698,2]
[333694648,1722363047192,-500.0,0.00013698,2]
[333694650,1722363047202,-500.0,0.00013698,2]
[333694652,1722363047212,-504.0877914,0.00013698,2]
[333694654,1722363047222,-500.0,0.00013698,2]
[333694656,1722363047231,-500.0,0.00013698,2]
[333694658,1722363047245,-462.76535141,0.00013698,2]
[333694660,1722363047254,-500.0,0.00013698,2]
[333694662,1722363047264,-500.0,0.00013698,2]
[333694664,1722363047274,-500.0,0.00013698,2]
[333694666,1722363047285,-500.0,0.00013698,2]
[333694668,1722363047295,-500.0,0.00013698,2]
[333694670,1722363047305,-500.0,0.00013698,2]
[333694672,1722363047314,-500.0,0.00013698,2]
[333694674,1722363047323,-500.0,0.00013698,2]
[333694676,1722363047333,-500.0,0.00013698,2]
[333694678,1722363047342,-500.0,0.00013698,2]
[333694680,1722363047351,-500.0,0.00013698,2]
[333694682,1722363047360,-500.0,0.00013698,2]
[333694684,1722363047370,-500.0,0.00013698,2]
[333694686,1722363047379,-500.0,0.00013698,2]
[333694688,1722363047389,-500.0,0.00013698,2]
[333694690,1722363047398,-500.0,0.00013698,2]
[333694692,1722363047408,-500.0,0.00013698,2]
[333694694,1722363047420,-294.63232116,0.00013698,2]
[333694696,1722363047429,-500.0,0.00013698,2]
[333694698,1722363047440,-500.0,0.00013698,2]
[333694700,1722363047453,-500.0,0.00013698,2]
[333694702,1722363047465,-500.0,0.00013698,2]
[333694704,1722363047476,-500.0,0.00013698,2]
[333694707,1722363047488,-2358.331151,0.00013699,2]
[333694708,1722363047498,-56656.3679398,0.00013699,2]
[333694710,1722363047507,-3000.0,0.00013699,2]
[333694712,1722363047517,-150.112233,0.000137,2]
[333694714,1722363047526,-200.0,0.000137,2]
[333694716,1722363047535,-276.15659471,0.00013796,2]
[333694718,1722363047545,-150.112233,0.000138,2]
[333694720,1722363047554,-150.112233,0.000139,2]
[333694722,1722363047564,-150.112233,0.000139,2]
[333694725,1722363047573,-277.8713912,0.00013955,2]
[333694727,1722363047583,-18574.1745897,0.00013962,2]
[333694729,1722363047592,-1017.27,0.00013972,2]
[333694730,1722363047601,-500.0,0.00013972,2]
[333694733,1722363047610,-2111.91,0.00013972,2]
[333694735,1722363047620,-1433.71,0.00013972,2]
[333694737,1722363047629,-500.0,0.00013972,2]
[333694739,1722363047640,-500.0,0.00013972,2]
[333694741,1722363047650,-500.0,0.00013972,2]
[333694743,1722363047660,-500.0,0.00013972,2]
[333694745,1722363047673,-500.0,0.00013972,2]
[333694747,1722363047684,-500.0,0.00013972,2]
[333694749,1722363047694,-500.0,0.00013972,2]
[333694751,1722363047707,-500.0,0.00013972,2]
[333694754,1722363047717,-500.0,0.00013972,2]
[333694756,1722363047727,-500.0,0.00013972,2]
[333694758,1722363047738,-500.0,0.00013972,2]
[333694759,1722363047751,-500.0,0.00013972,2]
[333694760,1722363047762,-500.0,0.00013972,2]
[333694761,1722363047773,-339.52,0.00013972,2]
[333694762,1722363047784,-500.0,0.00013972,2]
[333694763,1722363047797,-500.0,0.00013972,2]
[333694764,1722363047807,-276.15659471,0.00013994,2]
[333694765,1722363047818,-208.41106356,0.00014,2]
[333694766,1722363047829,-150.112233,0.00014,2]
[333694767,1722363047838,-620.0,0.00014029,2]
[333694768,1722363047848,-150.112233,0.000141,2]
[333694769,1722363047857,-153.0,0.0001411,2]
[333694770,1722363047867,-500.0,0.00014167,2]
[333694771,1722363047878,-500.0,0.00014167,2]
[333694772,1722363047889,-9808.58,0.00014167,2]
[333694773,1722363047900,-611.65,0.00014167,2]
[333694774,1722363047910,-392.66019088,0.00014167,2]
[333694775,1722363047920,-500.0,0.00014167,2]
[333694776,1722363047931,-500.0,0.00014167,2]
[333694777,1722363047940,-500.0,0.00014167,2]
[333694778,1722363047949,-500.0,0.00014167,2]
[333694779,1722363047958,-500.0,0.00014167,2]
[333694780,1722363047967,-276.15659471,0.00014192,2]
[333694781,1722363047977,-150.112233,0.000142,2]
[333694782,1722363047987,-150.112233,0.000142,2]
[333694783,1722363047998,-1017.27,0.00014246,2]
[333694784,1722363048010,-500.0,0.00014246,2]
[333694785,1722363048021,-2111.91,0.00014246,2]
[333694786,1722363048032,-1433.71,0.00014246,2]
[333694787,1722363048043,-500.0,0.00014246,2]
[333694788,1722363048054,-500.0,0.00014246,2]
[333694789,1722363048065,-500.0,0.00014246,2]
[333694790,1722363048076,-500.0,0.00014246,2]
[333694791,1722363048087,-619.69,0.00014246,2]
[333694792,1722363048098,-249.06421131,0.00014246,2]
[333694793,1722363048109,-500.0,0.00014246,2]
[333694794,1722363048304,-500.0,0.00014246,2]
[333694795,1722363048315,-500.0,0.00014246,2]
[333694796,1722363048325,-750.0,0.00014247,2]
[333694797,1722363048335,-307.4033574,0.00014299,2]
[333694798,1722363048345,-603.0,0.000143,2]
[333694799,1722363048356,-150.112233,0.000143,2]
[333694800,1722363048367,-37148.3491794,0.00014389,2]
[333694801,1722363048378,-276.15659471,0.0001439,2]
[333694802,1722363048388,-500.0,0.00014394,2]
[333694803,1722363048397,-40720.31632482,0.00014399,2]
[333694981,1722364232156,-309.57,0.00010959,2]
[333694984,1722364232167,-166.666666,0.00011358,2]
[333694986,1722364232177,-166.666666,0.00011667,2]
[333694988,1722364232187,-166.666666,0.00011977,2]
[333694990,1722364232198,-300.0,0.00011989,2]
[333694992,1722364232208,-16904.8586592,0.0001199,2]
[333694994,1722364232217,-160.689384,0.00012038,2]